Cogmind - Beta 13 X1 @@@ ROGUE MODE // 2023.06.23 @ 23:43:27 Player: CatPlusPlus Result: Self-destructed Performance ------------- Evolutions (4) 2000 Regions Visited (4) 800 Robots Destroyed (35) 175 Value Destroyed (671) 671 Prototype IDs (15) 300 Alien Tech Used (0) 0 Bonus (-16) -16 TOTAL SCORE: 3930 Bonus ------- Friendly Fire -16 Cogmind --------- Core Integrity 850/850 Matter 163/300 Energy 205/205 System Corruption 0% Temperature Cool (0) Movement Walking (187) Ox1 Location -6/Factory Parts ------- > --- POWER (1+1) ------ Multi-Fission Core (+) > --- PROPULSION (3+4) - Aluminum Leg Carbon-fiber Leg (+) Carbon-fiber Leg (+) Arachnoskeleton (+) > --- UTILITY (9) ------ Improved Heat Sink Huge Storage Unit Advanced Targeting Computer Scrap Shield Rainbow Chip > --- WEAPON (2+1) ----- Subdweller Beam Cannon Battle Rifle (+) Hammer > --- INVENTORY (25) --- Improved Heat Sink Subdweller Optics Improved Signal Interpreter Advanced Targeting Computer Advanced Targeting Computer Phase Shifter Light Armor Plating Hardened Medium Armor Plating Hardened Medium Armor Plating Hardened Medium Armor Plating Hardened Medium Armor Plating Scrap Shield Beamcaster Subdweller Beam Cannon Light Assault Rifle Subdweller Machine Gun Rocket Launcher Peak State ------------ > --- POWER ------------ Light Ion Engine Multi-Fission Core > --- PROPULSION ------- Aluminum Leg Carbon-fiber Leg Carbon-fiber Leg Arachnoskeleton > --- UTILITY ---------- Scrap Engine Improved Heat Sink Huge Storage Unit Advanced Targeting Computer Scrap Shield Rainbow Chip > --- WEAPON ----------- Subdweller Beam Cannon Battle Rifle Hammer > --- INVENTORY -------- Subdweller Power Source Light Angular Momentum Engine Neutrino Core Improved Heat Sink Subdweller Optics Improved Signal Interpreter Advanced Targeting Computer Advanced Targeting Computer Phase Shifter Light Armor Plating Hardened Medium Armor Plating Hardened Medium Armor Plating Hardened Medium Armor Plating Hardened Medium Armor Plating Scrap Shield Beamcaster Subdweller Beam Cannon Light Assault Rifle Subdweller Machine Gun Rocket Launcher [Rating: 86] Favorites ----------- Power Light Ion Engine Engine Light Ion Engine Power Core Constructs Propulsion Aluminum Leg Leg Aluminum Leg Utility Medium Storage Unit Device Sensor Array Storage Medium Storage Unit Processor Rainbow Chip Protection Scrap Shield Weapon Hammer Energy Gun Medium Laser Energy Cannon Subdweller Beam Cannon Ballistic Gun Battle Rifle Launcher Rocket Launcher Impact Weapon Hammer Build | -11 -10 -10 -8 -6 ------- Run | Jun Mat Sub Rec Fac Slots Evolved 8 | . . . . 8 Power . | . . . . . Propulsion 1 | . . . . 1 Utility 7 | . . . . 7 Weapon . | . . . . . Parts Attached 48 | 7 17 19 . 5 Power 4 | 1 2 1 . . Engine 4 | 1 2 1 . . Core . | . . . . . Reactor . | . . . . . Propulsion 14 | 2 2 9 . 1 Treads . | . . . . . Leg 14 | 2 2 9 . 1 Wheel . | . . . . . Hover . | . . . . . Flight . | . . . . . Utility 13 | 2 4 3 . 4 Device 7 | 1 3 1 . 2 Storage 3 | 1 1 1 . . Processor 2 | . . 1 . 1 Hackware . | . . . . . Protection 1 | . . . . 1 Artifact . | . . . . . Weapon 17 | 2 9 6 . . Energy Gun 7 | 1 4 2 . . Energy Cannon 1 | . . 1 . . Ballistic Gun 2 | 1 . 1 . . Ballistic Cannon . | . . . . . Launcher 3 | . 1 2 . . Special Weapon . | . . . . . Impact Weapon 4 | . 4 . . . Slashing Weapon . | . . . . . Piercing Weapon . | . . . . . Special Melee Weapon . | . . . . . Unidentified Prototypes . | . . . . . Parts Lost 7 | . 5 2 . . Power 3 | . 2 1 . . Propulsion 2 | . 1 1 . . Utility 1 | . 1 . . . Weapon 1 | . 1 . . . Highest Loss Streak 1 | . 1 1 . . To Critical Strikes . | . . . . . Average Slot Usage (%) 85 | . 99 83 64 62 Engine 10 | . 13 10 7 3 Leg 24 | . 27 24 21 18 Device 9 | . 13 7 . 8 Storage 11 | . 14 10 7 4 Processor 2 | . . 3 7 8 Energy Gun 6 | . 13 3 . . Energy Cannon 3 | . . 7 7 4 Ballistic Gun 5 | . 6 3 7 4 Impact Weapon 8 | . 7 10 7 4 Naked Turns . | . . . . . Heaviest Build 122 | 12 20 95 95 122 Greatest Support 90 | 20 20 80 80 90 Greatest Overweight (x) 2 | 2 1 2 1 1 Average Overweight (x) . | . . . 1 1 Largest Inventory Capacity 25 | 8 10 25 25 25 Average Capacity 15 | 7 9 16 25 25 Most Carried 25 | 8 10 22 25 24 Average Carried 13 | 5 9 11 24 20 Final Capacity 25 | 8 10 25 25 25 Final Carried 25 | 8 10 22 25 18 Scrap Engine Consumption 14 | . . . . 14 Constructs Created 1 | . . . . 1 Class Distribution -------------------- 58% | Mutant 29% | Subdweller-Mutant 12% | Scavenger-Mutant Dominant Class ---------------- Mutant | -10/Materials Scavenger-Mutant | -10/Subcaves Subdweller-Mutant | -8/Recycling Subdweller-Mutant | -6/Factory Resources | -11 -10 -10 -8 -6 ----------- Run | Jun Mat Sub Rec Fac Matter Collected 1076 | 391 379 303 3 . Remotely . | . . . . . Salvage Created 1000 | 262 609 79 50 . Parts 75 | 25 36 10 4 . Haulers Intercepted 2 | . 2 . . . Recyclers Shooed 1 | 1 . . . . Parts Field Recycled . | . . . . . Retrieved Matter . | . . . . . Parts Self-Destructed 3 | . . 3 . . Prevented . | . . . . . Kills | -11 -10 -10 -8 -6 ------- Run | Jun Mat Sub Rec Fac Combat Hostiles Destroyed 18 | . 15 2 1 . Melee 1 | . 1 . . . Guns 9 | . 9 . . . Cannons 1 | . . . 1 . AOE 4 | . 2 2 . . Classes Destroyed 9 | 3 4 1 1 . Worker 2 | 2 . . . . Tunneler 9 | 9 . . . . Hauler 2 | . 2 . . . Recycler 1 | 1 . . . . Watcher 3 | . 3 . . . Swarmer 5 | . 5 . . . Grunt 10 | . 10 . . . Sentry 1 | . . . 1 . Subdweller 2 | . . 2 . . Best Kill Streak 5 | 5 3 2 1 . Combat Bots Only 2 | . 2 2 1 . Max Kills in Single Turn 2 | 1 1 2 1 . Gunslinging . | . . . . . Exploded 2 | . 1 2 . . Melee 1 | . 1 . . . Uniques/NPCs Destroyed . | . . . . . Combat | -11 -10 -10 -8 -6 -------- Run | Jun Mat Sub Rec Fac Damage Taken 927 | . 701 211 15 . Core 113 | . 74 39 . . Absorbed by Shields . | . . . . . Regen/Repaired (Parts) 45 | . 45 . . . Core Remaining (%) 77 | 100 . . 54 . Volleys Fired 104 | 30 58 15 1 . Largest 2 | 2 2 1 2 . Hottest 105 | 70 70 80 105 . Shots Fired 172 | 60 94 15 3 . Gun 160 | 60 90 8 2 . Cannon 4 | . . 3 1 . Launcher 8 | . 4 4 . . Special . | . . . . . Kinetic 68 | 30 36 . 2 . Thermal 96 | 30 54 11 1 . Explosive 8 | . 4 4 . . Electromagnetic . | . . . . . Robot Hit Streak 9 | 9 8 9 2 . Robot Miss Streak 3 | 2 3 1 . . Penetration Max . | . . . . . Secondary Targets . | . . . . . Shots Hit Robots 113 | 35 65 11 2 . Core Hits 50 | 16 28 5 1 . Critical Kills . | . . . . . Critical Parts Destroyed 2 | . 2 . . . Critical Strikes 7 | 1 6 . . . Burn 5 | 1 4 . . . Smash 2 | . 2 . . . Melee Attacks 37 | . 18 17 . 2 Impact 37 | . 18 17 . 2 Slashing . | . . . . . Piercing . | . . . . . Sneak Attacks . | . . . . . Combat Hostiles . | . . . . . Follow-up Attacks . | . . . . . Damage Inflicted 2061 | 358 1057 609 37 . Guns 1059 | 358 602 87 12 . Cannons 79 | . . 54 25 . Explosions 690 | . 222 468 . . Melee 233 | . 233 . . . Ramming . | . . . . . Kinetic 281 | 122 147 . 12 . Thermal 917 | 236 515 141 25 . Explosive 630 | . 162 468 . . Electromagnetic . | . . . . . Impact 233 | . 233 . . . Slashing . | . . . . . Piercing . | . . . . . Highest Corruption 2 | . 2 2 2 . Average Corruption 2 | . 2 2 2 . Corruption Purged . | . . . . . Corruption Blocked . | . . . . . Effects 31 | . 9 18 4 . Message Errors 8 | . 4 3 1 . Matter Fused 9 | . 2 7 . . Heat Flow Errors 4 | . . 3 1 . Energy Discharges 2 | . 1 . 1 . Parts Fused 1 | . . 1 . . Data Loss (minor) 3 | . . 3 . . Data Loss (major) 2 | . 2 . . . Misfires 1 | . . . 1 . Alerts 1 | . . 1 . . Overload Shots . | . . . . . Overflow Damage 125 | . 123 2 . . Projectiles . | . . . . . Explosions 63 | . 61 2 . . Melee 62 | . 62 . . . Knockbacks 2 | . 2 . . . Impact 2 | . 2 . . . Kinetic . | . . . . . Secondary . | . . . . . Self-Inflicted Damage 42 | . . 42 . . Shots 1 | . . 1 . . Rammed . | . . . . . Targets Rammed . | . . . . . Kicked . | . . . . . Crushed . | . . . . . Highest Temperature 248 | 140 248 161 235 . Average Temperature 58 | 53 56 75 86 . Received Heat Transfer 363 | . 294 42 27 . Siege Activations . | . . . . . Robots Corrupted . | . . . . . Combat Hostiles . | . . . . . Parts Fried 3 | . 3 . . . Impact Corruptions 5 | . 5 . . . Robots Melted . | . . . . . Combat Hostiles . | . . . . . Parts Melted 4 | 1 3 . . . Heat Transferred 2825 | 777 1678 333 37 . Parts Sabotaged . | . . . . . Parts Stolen . | . . . . . Parts Stripped . | . . . . . Power Chain Reactions . | . . . . . Missiles Intercepted . | . . . . . Alert | -11 -10 -10 -8 -6 ------- Run | Jun Mat Sub Rec Fac Peak Influence 248 | 60 237 . 111 248 Initial 246 | . 39 . . 246 Average 111 | 30 124 . 43 247 Maximum Alert Level 1 | . 1 . . 1 Low Security (%) 85 | 100 93 . 100 . Level 1 14 | . 6 . . 100 Level 2 . | . . . . . Level 3 . | . . . . . Level 4 . | . . . . . Level 5 . | . . . . . High Security . | . . . . . Max Security . | . . . . . Squads Dispatched 5 | . 5 . . . Investigation 4 | . 4 . . . Extermination . | . . . . . Reinforcement 1 | . 1 . . . Assault . | . . . . . Garrison . | . . . . . Intercept . | . . . . . Searches Triggered . | . . . . . Construction Impeded . | . . . . . Haulers Reinforced . | . . . . . Active Scanning Responses . | . . . . . Cargo Convoy Interrupts . | . . . . . Stealth | -11 -10 -10 -8 -6 --------- Run | Jun Mat Sub Rec Fac Distress Signals . | . . . . . Communications Jammed . | . . . . . Distress Signals . | . . . . . Times Spotted 43 | . 25 17 1 . Peak Tracking Total 6 | . 3 6 1 . Tactical Retreats 2 | . 1 1 . . Traps | -11 -10 -10 -8 -6 ------- Run | Jun Mat Sub Rec Fac Traps Triggered 3 | . 3 . . . Indirectly . | . . . . . Trap Hack Attempts . | . . . . . Triggered . | . . . . . Disarmed 6 | . 6 . . . Reprogrammed . | . . . . . Reused . | . . . . . Traps Extracted . | . . . . . Installed . | . . . . . Triggered . | . . . . . Machines | -11 -10 -10 -8 -6 ---------- Run | Jun Mat Sub Rec Fac Machines Disabled 3 | . 2 1 . . Max in Single Turn 1 | . 1 1 . . Machines Repaired . | . . . . . Machines Sabotaged . | . . . . . Overloaded Fab Kills . | . . . . . Hacking | -11 -10 -10 -8 -6 --------- Run | Jun Mat Sub Rec Fac Machines Accessed 16 | . 9 1 6 . Terminals 8 | . 6 . 2 . Fabricators . | . . . . . Repair Stations 1 | . 1 . . . Recycling Units 6 | . 2 . 4 . Scanalyzers . | . . . . . Garrison Access . | . . . . . Total Hacks 49 | . 28 9 12 . Successful 28 | . 11 9 8 . Failed 21 | . 17 . 4 . Catastrophic 3 | . 2 . 1 . Database Lockouts . | . . . . . Manual 30 | . 21 . 9 . Terminals 31 | . 23 . 8 . Fabricators . | . . . . . Repair Stations 3 | . 3 . . . Recycling Units 6 | . 2 . 4 . Scanalyzers . | . . . . . Garrison Access . | . . . . . Terminal Hacks 20 | . 7 9 4 . Record 8 | . . 8 . . Part Schematic 2 | . 1 . 1 . Robot Analysis 2 | . 2 . . . Prototype ID Bank 2 | . 1 . 1 . Alert Level 1 | . . . 1 . Locate Traps 2 | . 2 . . . Disarm Traps 1 | . 1 . . . Hauler Manifests 1 | . . . 1 . Derelict Proto ID Bank 1 | . . 1 . . Fabricator Hacks . | . . . . . Repair Station Hacks 2 | . 2 . . . Scan Component 1 | . 1 . . . Repair 1 | . 1 . . . Recycling Unit Hacks . | . . . . . Scanalyzer . | . . . . . Garrison Access Hacks . | . . . . . Unauthorized Hacks 6 | . 2 . 4 . Terminals . | . . . . . Fabricators . | . . . . . Repair Stations . | . . . . . Recycling Units 6 | . 2 . 4 . Tunnel 6 | . 2 . 4 . Scanalyzers . | . . . . . Garrison Access . | . . . . . Data Cores Recovered . | . . . . . Used . | . . . . . Hacking Detections 8 | . 6 . 2 . Full Trace Events 2 | . 2 . . . Feedback Events . | . . . . . Feedback Blocked . | . . . . . Robot Schematics Acquired . | . . . . . Robots Built . | . . . . . Authchips . | . . . . . Time . | . . . . . Total Robot Build Rating . | . . . . . Part Schematics Acquired 2 | . 1 . 1 . Parts Built . | . . . . . Authchips . | . . . . . Time . | . . . . . Total Part Build Rating . | . . . . . Parts Repaired 1 | . 1 . . . Time 26 | . 26 . . . Parts Recycled . | . . . . . Recycled Matter . | . . . . . Retrieved Matter . | . . . . . Retrieved Components . | . . . . . Parts Scanalyzed . | . . . . . Part Schematics Acquired . | . . . . . Parts Damaged . | . . . . . Bothacking | -11 -10 -10 -8 -6 ------------ Run | Jun Mat Sub Rec Fac Used RIF Installer . | . . . . . Robots Hacked . | . . . . . Non-combat . | . . . . . Combat . | . . . . . Robot Hacks Applied . | . . . . . Relay Couplers Released . | . . . . . Fabnet Peak Effective % . | . . . . . Robots Rewired . | . . . . . Allies Hacked . | . . . . . Hacks Repelled . | . . . . . Allies | -11 -10 -10 -8 -6 -------- Run | Jun Mat Sub Rec Fac Total Allies . | . . . . . Largest Group . | . . . . . Highest-Rated Group . | . . . . . Highest-Rated Ally . | . . . . . Total Orders . | . . . . . Ally Attacks . | . . . . . Total Damage . | . . . . . Kills . | . . . . . Allies Corrupted . | . . . . . Allies Melted . | . . . . . Intel | -11 -10 -10 -8 -6 ------- Run | Jun Mat Sub Rec Fac Robot Analysis Total 2 | . 2 . . . Derelict Logs Recovered . | . . . . . Drone Launches . | . . . . . Drone Recoveries . | . . . . . Exploration | -11 -10 -10 -8 -6 ------------- Run | Jun Mat Sub Rec Fac Turns Passed 4203 | 279 1656 1332 621 315 Spaces Moved 2373 | 149 947 802 315 160 Core 8 | 8 . . . . Treads . | . . . . . Legs 2365 | 141 947 802 315 160 Wheels . | . . . . . Hover . | . . . . . Flight . | . . . . . Fastest Speed 50 | 50 120 90 186 187 Average Speed 141 | 118 120 145 186 187 Slowest Speed 260 | 150 190 260 186 187 Overloaded Moves . | . . . . . Propulsion Burnouts . | . . . . . Robots Hopped . | . . . . . Cave-ins Triggered . | . . . . . Exploration Rate (%) 42 | 4 97 39 69 5 Regions Visited 4 Branch Regions 2 Pre-discovered Areas 7 | . 2 1 4 . Known Exits Taken . | . . . . . Unknown Exits Taken 4 | 1 1 1 1 . Scrap Searched 1 | . . 1 . . Spaces Dug 10 | . 7 1 . 2 Terrain Destroyed 55 | . 23 30 . 2 Melee 10 | . 7 1 . 2 Projectile . | . . . . . AOE 45 | . 16 29 . . Terrain Rammed . | . . . . . Walls Destroyed . | . . . . . Machines Disabled . | . . . . . Actions | -11 -10 -10 -8 -6 --------- Run | Jun Mat Sub Rec Fac Total 2992 | 193 1349 923 353 174 Wait 334 | . 283 30 21 . Move 2369 | 148 946 801 314 160 Hop . | . . . . . Pick Up 57 | 8 13 24 10 2 Fast Attach 19 | 7 6 5 . 1 Attach 10 | . 2 4 . 4 Detach 1 | . . . . 1 Swap 19 | . 9 10 . . Drop 42 | . 14 17 7 4 Fire 104 | 30 58 15 1 . Melee 37 | . 18 17 . 2 Ram . | . . . . . Kick . | . . . . . Crush . | . . . . . Escape Stasis . | . . . . . Rewire . | . . . . . Trap . | . . . . . Miscellaneous . | . . . . . Route ------- -11/Junkyard -10/Materials (discovered 5 exits: [*Mat x3] / [*Min] / *Sub) -10/Subcaves (discovered 2 exits: [*Mat] / *Rec) -8/Recycling -6/Factory (discovered 1 exit: [*Low]) History --------- Turn | Location | Event 10 | -11/Junkyard | Discovered new exit (range 15) 280 | -11/Junkyard | Entered Materials 314 | -10/Materials | Build established: Mutant 713 | -10/Materials | Discovered new exit (range 14) 1303 | -10/Materials | Discovered new exit (range 15) 1353 | -10/Materials | Discovered new exit (range 6) 1433 | -10/Materials | Repaired Med. Laser 1500 | -10/Materials | Discovered new exit (range 11) 1838 | -10/Materials | Discovered new exit (range 9) 1936 | -10/Materials | Entered Subcaves 2060 | -10/Subcaves | Discovered new exit (range 12) 2064 | -10/Subcaves | Ambushed by swarm of Subdwellers 2226 | -10/Subcaves | A Subdweller sparked back to life 2226 | -10/Subcaves | A Subdweller sparked back to life 2247 | -10/Subcaves | Found Prototype Leg 2320 | -10/Subcaves | Discovered new exit (range 7) 2366 | -10/Subcaves | Learned location of Zion (-6) 2366 | -10/Subcaves | Met a Zionite searching for "candidates" 2447 | -10/Subcaves | Shifting Twisted Machinery released Sub. Laser 2465 | -10/Subcaves | Shifting Twisted Machinery released Scrap Shield 2658 | -10/Subcaves | Visited 4L-MR0's lab 2664 | -10/Subcaves | Identified Arachnoskeleton 2671 | -10/Subcaves | Found Rainbow Chip 2673 | -10/Subcaves | Attached Rainbow Chip, gained temporary slots: Power, Propulsion, Utility, Weapon 2675 | -10/Subcaves | Attached Arachnoskeleton, gained temporary slots: Propulsion x3 2741 | -10/Subcaves | Build established: Scavenger-Mutant 3268 | -10/Subcaves | Entered Recycling 3268 | -8/Recycling | Found Scrap Engine 3273 | -8/Recycling | Build established: Subdweller-Mutant 3695 | -8/Recycling | Discovered new exit (range 16) 3889 | -8/Recycling | Entered Factory 3889 | -6/Factory | Evolved 8 slots: Propulsion x1, Utility x7 4154 | -6/Factory | Discovered new exit (range 15) 4204 | -6/Factory | Self-destructed Last Messages --------------- 04008_ Scrap Engine consumes Fusion Compressor. 04048_ Connecting with DSF Access... 04048_ Current location identified: Factory 04063_ ALERT: Security rotation in progress. 04090_ Scrap Engine consumes Fission Core. 04120_ Scrap Engine constructs Multi-Fission Core. 04123_ Dropped Sub. Power Source. 04124_ Dropped Neutrino Core. 04124_ Dropped Lgt. Angular Momentum Engine. 04126_ Scrap Engine consumes Lgt. Angular Momentum Engine. 04128_ Scrap Engine consumes Sub. Power Source. 04129_ Scrap Engine consumes Neutrino Core. 04133_ Dropped Lgt. Ion Engine. 04136_ Scrap Engine consumes Lgt. Ion Engine. 04154_ EXIT=FOUND 04157_ Scrap Engine consumes Imp. Light Armor Plating. 04162_ Scrap Engine consumes Imp. Deuterium Engine. 04166_ Scrap Engine consumes Imp. Light Armor Plating. 04200_ Scrap Engine envelopes itself in armor. 04200_ Temporary Utility slot lost. Map ----- +----------------------------------------------------+ | ????????????????????????##### ### #??????????? | | ???????????????????????# #??????????? | | ???????????????????????# #??????????? | | ???????????????????????# +??????????? | | ???????????????????????# """"""""" #??????????? | | ???????????????????????# #??????????? | | ???????????????????????# """"""""" #??????????? | | ???????????????????????# ##### ? | | ???????????????????????# ? | | ???????????????????????# < ? | | ???????????????????????# ? | | ???????????????????????# ##### ? | | ???????????????????????# #???????? ?? | | ???????????????????????### ########??????????? | | ?????????????????????????# #?????????????????? | | ?????????????????????????# #?????????????????? | | ?????????????????????????# #############?????? | | ?????????????????????????# #?????? | | ?????????????????????????# ############# #?????? | | ?????????????????????????# #???????????# ####### | | ???????????????????####### #???????????# | | ??????????????????? # #????########+##+#### | | ???????????????????""""" # #????# #?? | | ??????????????????"""""" # #????# #?? | | ?????????????????""""""" # #????# #?? | | ???????????????# """"""" @ #????# #?? | | ???????????????# # #????# #?? | | ???????????????# # #????# """" """" #?? | | ???????????????# # #????# """" """" #?? | | ???????????????########### #????# """" """" #?? | | ?????????????????????????# #????# """" """" #?? | | ?????????????????????????# #????# """" """" #?? | | ?????????????????????????# #????# """" """" #?? | | ?????????????????????????? ????# #?? | | ?????????????????????????? ??#########+#+####?? | | ????????????????????????? #????? | | ?????????????????????????? #?####### #????? | | ?????????????????????????? #???????# #????? | | ???????????????????????###########????# +????? | | ???????????????????????# #???## #????? | | ???????????????????????# #???# #????? | | ???????????????????????# """" #???#T #????? | | ???????????????????????# """" #???## #????? | | ???????????????????????# """" ###### #????? | | ???????????????????????# """" + #????? | | ???????????????????????# """" ###### #????? | | ???????????????????????# """" !#????# #????? | | ???????????????????????# """" #????# #????? | | ???????????????????????# #????# #????? | | ???????????????????????# #????# #????? | +----------------------------------------------------+ Best States ------------- Heat Dissipation 51 Energy Generation 27 Energy Capacity 250 Matter Stores 300 Matter Capacity 300 Sight Range 16 Robot Scan Range 14 Terrain Scan Density 10 Armor Coverage 800 Evasion (%) 55 Targeting Accuracy 8 Item Schematics ----------------- Med. Storage Unit | -10/Materials | Hacked Hvy. Armor Plating | -8/Recycling | Hacked Robot Schematics ------------------ None Fabricated ------------ Nothing Alien Tech Used ----------------- None Achievements -------------- \\IAMDERELICT Challenges ------------ None Game ------ Seed BladeSpectralPerforator Manual? 0 Play Time 01:09:25 Cumulative 27.8 hours Start 2023.06.23 @ 21:01:25 End 2023.06.23 @ 23:43:27 Sessions 7 Manual Loads 0 Difficulty Rogue Special Mode None Game No. 19 Rogue 19 Adventurer 0 Explorer 0 Win Type - Total 1 Types 1/0/0/0/0/0/0/0/0 Lore% 18 Gallery% 28 Achievement% 26 Wizard Run 0 Options --------- ASCII 0 Keyboard 1 Movement Numpad Keybinds 0 Fullscreen 2 Font 24/Terminus Map View 76x50 Tactical HUD 1 Map Filters NONE Filters NONE Steam 1 RUN: 768a37ce-59a3-46f8-83c6-bc9a941fd4f6